fUSD/lending_fUSD_20251210
["ID","MTS","AMOUNT","RATE_DAILY","PERIOD"]
[398103423,1765371040442,-800.0,0.00021764,2]
[398103424,1765371040451,-800.0,0.00021764,2]
[398103425,1765371040468,-800.0,0.00021764,2]
[398103426,1765371040479,-800.0,0.00021764,2]
[398103427,1765371040488,-800.0,0.00021764,2]
[398103428,1765371040499,-800.0,0.00021764,2]
[398103429,1765371040509,-800.0,0.00021764,2]
[398103430,1765371040519,-793.0,0.00021764,2]
[398103431,1765371040529,-500.0,0.00021835,2]
[398103432,1765371040539,-1000.0,0.00021854,2]
[398103433,1765371040548,-150.84,0.00021908,2]
[398103434,1765371040557,-5000.0,0.00021918,2]
[398103435,1765371040567,-500.0,0.00021918,4]
[398103436,1765371040576,-500.0,0.00021918,4]
[398103437,1765371040585,-500.0,0.00021918,4]
[398103438,1765371040596,-500.0,0.00021918,4]
[398103439,1765371040606,-500.0,0.00021918,4]
[398103440,1765371040615,-500.0,0.00021918,4]
[398103441,1765371040624,-500.0,0.00021918,4]
[398103442,1765371040634,-500.0,0.00021918,4]
[398103443,1765371040643,-500.0,0.00021918,4]
[398103444,1765371040652,-500.0,0.00021918,4]
[398103445,1765371040661,-500.0,0.00022109,2]
[398103446,1765371040671,-500.0,0.00022383,2]
[398103447,1765371040680,-3459.0,0.0002243,2]
[398103448,1765371040690,-200.0,0.0002258,2]
[398103449,1765371040699,-2000.0,0.000226,2]
[398103450,1765371040709,-500.0,0.00022657,2]
[398103451,1765371040717,-999.0,0.00022835,3]
[398103452,1765371040727,-500.0,0.00022931,2]
[398103453,1765371040736,-995.71445343,0.00023188,2]
[398103454,1765371040746,-530.0,0.0002319,2]
[398103455,1765371040755,-6429.65412709,0.00023266,2]
[398103456,1765371040765,-151.0,0.00023313,2]
[398103457,1765371040774,-151.0,0.00023313,2]
[398103458,1765371040784,-151.0,0.00023313,2]
[398103459,1765371040794,-151.0,0.00023313,2]
[398103460,1765371040803,-151.0,0.00023313,2]
[398103461,1765371040813,-151.0,0.00023313,2]
[398103462,1765371040822,-151.0,0.00023313,2]
[398103463,1765371040832,-151.0,0.00023313,2]
[398103464,1765371040841,-151.0,0.00023313,2]
[398103465,1765371040851,-151.0,0.00023313,2]
[398103466,1765371040860,-151.0,0.00023313,2]
[398103467,1765371040870,-151.0,0.00023313,2]
[398103468,1765371040879,-170.85091616,0.00023313,2]
[398103469,1765371040889,-158.36,0.00023406,2]
[398103470,1765371040898,-151.0,0.00024039,2]
[398103471,1765371040908,-153.8478,0.00024039,2]
[398103472,1765371040919,-1000.0,0.00024039,2]
[398103473,1765371040929,-238.09951071,0.00024391,2]
[398103474,1765371040939,-284.0782769,0.00024626,2]
[398103475,1765371040950,-520.88,0.00024644,2]
[398103476,1765371040960,-1482.7,0.00024658,30]
[398103477,1765371040969,-1000.0,0.00024658,2]
[398103478,1765371041146,-500.0,0.00024698,2]
[398103479,1765371041157,-500.0,0.00024698,2]
[398103480,1765371041166,-714.4420092,0.000247,2]
[398103481,1765371041176,-366.70700074,0.000247,2]
[398103482,1765371041186,-150.84,0.0002479,2]
[398103483,1765371041195,-150.84,0.0002479,2]
[398103484,1765371041206,-150.84,0.0002479,2]
[398103485,1765371041216,-150.84,0.0002479,2]
[398103486,1765371041225,-150.84,0.0002479,2]
[398103487,1765371041235,-150.84,0.0002479,2]
[398103488,1765371041244,-150.84,0.0002479,2]
[398103489,1765371041254,-150.84,0.0002479,2]
[398103490,1765371041263,-150.84,0.0002479,2]
[398103491,1765371041273,-150.84,0.0002479,2]
[398103492,1765371041282,-150.84,0.0002479,2]
[398103493,1765371041292,-500.0,0.00024799,2]
[398103494,1765371041302,-500.0,0.00024799,2]
[398103495,1765371041312,-500.0,0.00024799,2]
[398103496,1765371041322,-513.74794916,0.00024799,2]
[398103497,1765371041331,-150.0,0.000248,2]
[398103498,1765371041342,-330837.13740869,0.000248,3]
[398103561,1765371362701,250.0,0.000202,30]
[398103567,1765371906916,250.0,0.0001229,2]
[398103581,1765372231680,-606.62,0.00013699,2]
[398103582,1765372231689,-6521.93279249,0.00017773,2]
[398103583,1765372231699,-166.66,0.00017874,2]
[398103584,1765372231708,-394.0,0.00017998,2]
[398103585,1765372231718,-241.67493072,0.00017999,2]
[398103586,1765372231727,-506.37235227,0.00017999,2]
[398103587,1765372231737,-307.91170172,0.00017999,2]
[398103588,1765372231746,-482.48864856,0.00017999,2]
[398103589,1765372231756,-500.0,0.00017999,2]
[398103590,1765372231765,-500.0,0.00017999,2]
[398103591,1765372231775,-500.0,0.00017999,2]
[398103592,1765372231791,-500.0,0.00017999,2]
[398103593,1765372231803,-500.0,0.00017999,2]
[398103594,1765372231813,-500.0,0.00017999,2]
[398103595,1765372231822,-166.66,0.0001825,2]
[398103596,1765372231832,-531.2720263,0.00018273,2]
[398103597,1765372231841,-166.66,0.00018626,2]
[398103598,1765372231851,-180.54,0.0001873,2]
[398103599,1765372231860,-195.39,0.00018833,2]
[398103600,1765372231869,-200.0,0.00018836,2]
[398103601,1765372231879,-166.66,0.00019002,2]
[398103602,1765372231888,-166.66,0.00019379,2]
[398103603,1765372231898,-896.14300815,0.00019689,2]
[398103604,1765372231907,-248.56849234,0.00019733,2]
[398103605,1765372231916,-25000.0,0.00019745,3]
[398103606,1765372231925,-6429.65412711,0.0001975,2]
[398103607,1765372231934,-25000.0,0.00019754,3]
[398103608,1765372231944,-166.66,0.00019755,2]
[398103609,1765372231955,-13838.09009514,0.00019762,3]
[398103610,1765372237709,-600.0,0.00019762,3]
[398103611,1765372237721,-955.88436296,0.00019762,3]
[398103612,1765372237963,-9606.0255419,0.00019762,3]
[398103613,1765372237981,-25000.0,0.00019771,3]
[398103614,1765372237991,-25000.0,0.0001978,3]
[398103615,1765372238002,-25000.0,0.00019789,3]
[398103616,1765372238011,-25000.0,0.00019798,3]
[398103617,1765372238021,-200.0,0.00019802,2]
[398103618,1765372238032,-151.0,0.00019802,2]
[398103619,1765372238041,-151.0,0.00019802,2]
[398103620,1765372238051,-151.0,0.00019802,2]
[398103621,1765372238062,-151.0,0.00019802,2]
[398103622,1765372238072,-151.0,0.00019802,2]
[398103623,1765372238085,-151.0,0.00019802,2]
[398103624,1765372238095,-151.0,0.00019802,2]
[398103625,1765372238105,-151.0,0.00019802,2]
[398103626,1765372238115,-25000.0,0.00019806,3]
[398103627,1765372238125,-500.0,0.00019813,2]
[398103628,1765372238134,-500.0,0.00019813,2]
[398103629,1765372238144,-500.0,0.00019813,2]
[398103630,1765372238153,-500.0,0.00019813,2]
[398103631,1765372238163,-500.0,0.00019813,2]
[398103632,1765372238172,-500.0,0.00019813,2]
[398103633,1765372238182,-500.0,0.00019813,2]
[398103634,1765372238191,-500.0,0.00019813,2]
[398103635,1765372238200,-500.0,0.00019813,2]
[398103636,1765372238210,-500.0,0.00019813,2]
[398103637,1765372238220,-401.71,0.00019813,2]
[398103638,1765372238230,-298.56,0.00019813,2]
[398103639,1765372238240,-500.0,0.00019813,2]
[398103640,1765372238249,-500.0,0.00019813,2]
[398103641,1765372238259,-500.0,0.00019813,2]
[398103642,1765372238268,-500.0,0.00019813,2]
[398103643,1765372238278,-500.0,0.00019813,2]
[398103644,1765372238287,-490.25435778,0.00019813,2]
[398103645,1765372238296,-500.0,0.00019813,2]
[398103646,1765372238306,-500.0,0.00019813,2]
[398103647,1765372238316,-500.0,0.00019813,2]
[398103648,1765372238326,-500.0,0.00019813,2]
[398103649,1765372238336,-500.0,0.00019813,2]
[398103650,1765372238345,-500.0,0.00019814,2]
[398103651,1765372238355,-500.0,0.00019814,2]
[398103652,1765372238364,-500.0,0.00019814,2]
[398103653,1765372238374,-500.0,0.00019814,2]
[398103654,1765372238384,-192.24944357,0.00019814,2]
[398103655,1765372238394,-500.0,0.00019814,2]
[398103656,1765372238403,-500.0,0.00019814,2]
[398103657,1765372238413,-500.0,0.00019814,2]
[398103658,1765372238423,-500.0,0.00019814,2]
[398103659,1765372238433,-500.0,0.00019814,2]
[398103660,1765372238443,-500.0,0.00019814,2]
[398103661,1765372238453,-500.0,0.00019814,2]
[398103662,1765372238463,-500.0,0.00019814,2]
[398103663,1765372238473,-500.0,0.00019814,2]
[398103664,1765372238484,-500.0,0.00019814,2]
[398103665,1765372238495,-500.0,0.00019814,2]
[398103666,1765372238505,-500.0,0.00019814,2]
[398103667,1765372238516,-500.0,0.00019814,2]
[398103668,1765372238525,-500.0,0.00019814,2]
[398103669,1765372238536,-500.0,0.00019814,2]
[398103670,1765372238546,-500.0,0.00019814,2]
[398103671,1765372238555,-500.0,0.00019814,2]
[398103672,1765372238566,-500.0,0.00019814,2]
[398103673,1765372238576,-500.0,0.00019814,2]
[398103674,1765372238586,-500.0,0.00019814,2]
[398103675,1765372238595,-500.0,0.00019814,2]
[398103676,1765372238605,-500.0,0.00019814,2]
[398103677,1765372238614,-500.0,0.00019814,2]
[398103678,1765372238624,-500.0,0.00019814,2]
[398103679,1765372238634,-500.0,0.00019814,2]
[398103680,1765372238644,-500.0,0.00019814,2]
[398103681,1765372238654,-500.0,0.00019814,2]
[398103682,1765372238663,-500.0,0.00019814,2]
[398103683,1765372238673,-551.50228564,0.00019814,2]
[398103684,1765372238683,-500.0,0.00019814,2]
[398103685,1765372238692,-500.0,0.00019814,2]
[398103686,1765372238702,-500.0,0.00019814,2]
[398103687,1765372238712,-404.04642156,0.00019814,2]
[398103688,1765372238721,-500.0,0.00019814,2]
[398103689,1765372238730,-500.0,0.00019814,2]
[398103690,1765372238739,-500.0,0.00019814,2]
[398103691,1765372238748,-397.57691617,0.00019814,2]
[398103692,1765372238758,-500.0,0.00019814,2]
[398103693,1765372238767,-500.0,0.00019814,2]
[398103694,1765372238777,-500.0,0.00019814,2]
[398103695,1765372238787,-500.0,0.00019814,2]
[398103696,1765372238796,-500.0,0.00019814,2]
[398103697,1765372238806,-500.0,0.00019814,2]
[398103698,1765372238815,-500.0,0.00019814,2]
[398103699,1765372238825,-500.0,0.00019814,2]
[398103700,1765372238838,-500.0,0.00019814,2]
[398103701,1765372238848,-500.0,0.00019814,2]
[398103702,1765372238858,-500.0,0.00019814,2]
[398103703,1765372238868,-500.0,0.00019814,2]
[398103704,1765372238877,-500.0,0.00019814,2]
[398103705,1765372238887,-500.0,0.00019814,2]
[398103706,1765372238896,-500.0,0.00019814,2]
[398103707,1765372238907,-500.0,0.00019814,2]
[398103708,1765372238917,-500.0,0.00019814,2]
[398103709,1765372238926,-506.88813229,0.00019814,2]
[398103710,1765372238936,-500.0,0.00019814,2]
[398103711,1765372238946,-502.31378629,0.00019814,2]
[398103712,1765372238961,-500.0,0.00019814,2]
[398103713,1765372238972,-500.0,0.00019814,2]
[398103714,1765372238983,-500.0,0.00019814,2]
[398103715,1765372238995,-500.0,0.00019814,2]
[398103716,1765372239007,-500.0,0.00019814,2]
[398103717,1765372239017,-500.0,0.00019814,2]
[398103718,1765372239027,-500.0,0.00019814,2]
[398103719,1765372239039,-500.0,0.00019814,2]
[398103720,1765372239049,-280.01512594,0.00019814,2]
[398103721,1765372239059,-500.0,0.00019814,2]
[398103722,1765372239068,-500.0,0.00019814,2]
[398103723,1765372239078,-500.0,0.00019814,2]
[398103724,1765372239088,-500.0,0.00019814,2]
[398103725,1765372239101,-25000.0,0.00019815,3]
[398103726,1765372239111,-25000.0,0.00019824,3]
[398103727,1765372239120,-25000.0,0.00019833,3]
[398103728,1765372239130,-25000.0,0.00019842,3]
[398103729,1765372239140,-25000.0,0.0001985,3]
[398103730,1765372239150,-25000.0,0.00019859,3]
[398103731,1765372239159,-25000.0,0.00019868,3]
[398103732,1765372239169,-25000.0,0.00019877,3]
[398103733,1765372239178,-197.298459,0.00019877,2]
[398103734,1765372239190,-197.298459,0.00019877,2]
[398103735,1765372239201,-197.298459,0.00019877,2]
[398103736,1765372239211,-197.298459,0.00019877,2]
[398103737,1765372239221,-165.201126,0.00019877,2]
[398103738,1765372239231,-151.0,0.00019877,2]
[398103739,1765372239240,-151.0,0.00019877,2]
[398103740,1765372239250,-151.0,0.00019877,2]
[398103741,1765372239259,-151.0,0.00019877,2]
[398103742,1765372239269,-292.5041,0.00019877,2]
[398103743,1765372239281,-292.5041,0.00019877,2]
[398103744,1765372239291,-292.5041,0.00019877,2]
[398103745,1765372239301,-292.5041,0.00019877,2]
[398103746,1765372239311,-973.187634,0.00019877,2]
[398103747,1765372239321,-973.187634,0.00019877,2]
[398103748,1765372239331,-973.187634,0.00019877,2]
[398103749,1765372239341,-973.187634,0.00019877,2]
[398103750,1765372239351,-151.0,0.00019877,2]
[398103751,1765372239361,-151.0,0.00019877,2]
[398103752,1765372239371,-151.0,0.00019877,2]
[398103753,1765372239382,-151.0,0.00019877,2]
[398103754,1765372239398,-151.0,0.00019877,2]
[398103755,1765372239409,-151.0,0.00019877,2]
[398103756,1765372239418,-151.0,0.00019877,2]
[398103757,1765372239428,-155.698271,0.00019877,2]
[398103758,1765372239438,-151.0,0.00019877,2]
[398103759,1765372239447,-151.0,0.00019877,2]
[398103760,1765372239457,-151.0,0.00019877,2]
[398103761,1765372239466,-158.511192,0.00019877,2]
[398103762,1765372239475,-153.433687,0.00019877,2]
[398103763,1765372239485,-151.0,0.00019877,2]
[398103764,1765372239494,-151.0,0.00019877,2]
[398103765,1765372239504,-154.19721,0.00019877,2]
[398103766,1765372239513,-151.0,0.00019877,2]
[398103767,1765372239523,-545.276758,0.00019877,2]
[398103768,1765372239533,-291.0724,0.00019877,2]
[398103769,1765372239542,-545.276758,0.00019877,2]
[398103770,1765372239553,-291.0724,0.00019877,2]
[398103771,1765372239563,-291.0724,0.00019877,2]
[398103772,1765372239573,-545.276758,0.00019877,2]
[398103773,1765372239583,-291.0724,0.00019877,2]
[398103774,1765372239591,-545.276758,0.00019877,2]
[398103775,1765372239601,-151.0,0.00019877,2]
[398103776,1765372239614,-151.0,0.00019877,2]
[398103777,1765372239624,-151.0,0.00019877,2]
[398103778,1765372239634,-151.0,0.00019877,2]
[398103779,1765372239644,-151.0,0.00019877,2]
[398103780,1765372239653,-734.650876,0.00019877,2]
[398103781,1765372239663,-734.650876,0.00019877,2]
[398103782,1765372239672,-734.650876,0.00019877,2]
[398103783,1765372239682,-734.650876,0.00019877,2]
[398103784,1765372239691,-161.415347,0.00019885,2]
[398103785,1765372239701,-151.29016,0.00019885,2]
[398103786,1765372239710,-153.558012,0.00019885,2]
[398103787,1765372239720,-151.0,0.00019885,2]
[398103788,1765372239729,-151.0,0.00019885,2]
[398103789,1765372239739,-25000.0,0.00019886,3]
[398103790,1765372239748,-25000.0,0.00019894,3]
[398103791,1765372239759,-152.967229,0.00019895,2]
[398103792,1765372239769,-25000.0,0.00019903,3]
[398103793,1765372239778,-25000.0,0.00019912,3]
[398103794,1765372239788,-25000.0,0.00019921,3]
[398103795,1765372239798,-500.0,0.00020087,2]
[398103796,1765372239808,-188.14,0.00020087,2]
[398103797,1765372239818,-500.0,0.00020087,2]
[398103798,1765372239827,-327.21,0.00020087,2]
[398103799,1765372239837,-500.0,0.00020087,2]
[398103800,1765372239846,-500.0,0.00020087,2]
[398103801,1765372239855,-500.0,0.00020087,2]
[398103802,1765372239865,-500.0,0.00020088,2]
[398103803,1765372239875,-500.0,0.00020088,2]
[398103804,1765372239884,-500.0,0.00020088,2]
[398103805,1765372239894,-500.0,0.00020088,2]
[398103806,1765372239903,-500.0,0.00020088,2]
[398103807,1765372239912,-500.0,0.00020088,2]
[398103808,1765372239921,-500.0,0.00020088,2]
[398103809,1765372239932,-500.61159503,0.00020088,2]
[398103810,1765372239942,-606.62,0.00020187,2]
[398103811,1765372239954,-500.0,0.00020361,2]
[398103812,1765372239965,-151.0,0.00020361,2]
[398103813,1765372239975,-234.433054,0.00020361,2]
[398103814,1765372239986,-500.0,0.00020361,2]
[398103815,1765372239996,-151.0,0.00020361,2]
[398103816,1765372240006,-151.0,0.00020361,2]
[398103817,1765372240016,-151.0,0.00020361,2]
[398103818,1765372240028,-734.650876,0.00020361,2]
[398103819,1765372240039,-734.650876,0.00020361,2]
[398103820,1765372240049,-734.650876,0.00020361,2]
[398103821,1765372240059,-734.650876,0.00020361,2]
[398103822,1765372240069,-275.45570378,0.00020361,2]
[398103823,1765372240079,-524.4,0.00020362,2]
[398103824,1765372240089,-500.0,0.00020362,2]
[398103825,1765372240099,-500.0,0.00020362,2]
[398103826,1765372240110,-500.0,0.00020362,2]
[398103827,1765372240121,-151.0,0.00020362,2]
[398103828,1765372240131,-545.276758,0.00020362,2]
[398103829,1765372240141,-291.0724,0.00020362,2]
[398103830,1765372240150,-545.276758,0.00020362,2]
[398103831,1765372240159,-291.0724,0.00020362,2]
[398103832,1765372240168,-291.0724,0.00020362,2]
[398103833,1765372240178,-545.276758,0.00020362,2]
[398103835,1765372240187,-291.0724,0.00020362,2]
[398103837,1765372240197,-545.276758,0.00020362,2]
[398103839,1765372240206,-2000.0,0.000205,2]
[398103841,1765372240217,-401.2,0.000205,7]
[398103843,1765372240225,-1000.0,0.000205,2]
[398103845,1765372240235,-151.0,0.000205,2]
[398103847,1765372240244,-151.0,0.000205,2]
[398103849,1765372240254,-151.0,0.000205,2]
[398103851,1765372240263,-151.0,0.000205,2]
[398103853,1765372240273,-151.0,0.000205,2]
[398103854,1765372240283,-151.0,0.000205,2]
[398103855,1765372240292,-151.0,0.000205,2]
[398103856,1765372240301,-151.0,0.000205,2]
[398103857,1765372240313,-151.0,0.000205,2]
[398103858,1765372240323,-254.228448,0.000205,2]
[398103859,1765372240333,-291.198264,0.00020548,2]
[398103860,1765372240343,-291.198264,0.00020548,2]
[398103861,1765372240353,-291.198264,0.00020548,2]
[398103862,1765372240368,-291.198264,0.00020548,2]
[398103863,1765372240378,-1221.942,0.00020597,2]
[398103864,1765372240387,-159.186,0.00020597,2]
[398103865,1765372240402,-500.0,0.00020635,2]
[398103866,1765372240412,-500.0,0.00020635,2]
[398103867,1765372240421,-500.0,0.00020636,2]
[398103868,1765372240432,-973.187634,0.00020636,2]
[398103869,1765372240441,-973.187634,0.00020636,2]
[398103870,1765372240451,-973.187634,0.00020636,2]
[398103871,1765372240460,-973.187634,0.00020636,2]
[398103872,1765372240470,-500.0,0.00020636,2]
[398103873,1765372240480,-151.0,0.00020636,2]
[398103874,1765372240489,-151.0,0.00020636,2]
[398103875,1765372240499,-500.0,0.00020909,2]
[398103876,1765372240509,-500.0,0.0002091,2]
[398103877,1765372240518,-151.0,0.0002091,2]
[398103878,1765372240527,-292.5041,0.0002091,2]
[398103879,1765372240536,-292.5041,0.0002091,2]
[398103880,1765372240546,-292.5041,0.0002091,2]
[398103881,1765372240555,-292.5041,0.0002091,2]
[398103882,1765372240566,-500.0,0.00021183,2]
[398103883,1765372240575,-500.0,0.00021184,2]
[398103884,1765372240585,-500.0,0.00021457,2]
[398103885,1765372240594,-500.0,0.00021458,2]
[398103886,1765372240603,-500.0,0.00021731,2]
[398103887,1765372240612,-393.739534,0.00021732,2]
[398103888,1765372240622,-500.0,0.00021756,2]
[398103889,1765372240632,-620.16,0.00021757,2]
[398103890,1765372240642,-9999.99,0.00021757,2]
[398103891,1765372240651,-346.27,0.00021757,2]
[398103892,1765372240661,-800.0,0.00021768,2]
[398103893,1765372240670,-800.0,0.00021768,2]
[398103894,1765372240679,-800.0,0.00021768,2]
[398103895,1765372240688,-800.0,0.00021768,2]
[398103896,1765372240698,-800.0,0.00021768,2]
[398103897,1765372240708,-800.0,0.00021768,2]
[398103898,1765372240717,-800.0,0.00021768,2]
[398103899,1765372240726,-800.0,0.00021768,2]
[398103900,1765372240736,-793.0,0.00021768,2]
[398103901,1765372240745,-200.0,0.00021768,2]
[398103902,1765372240755,-200.0,0.00021768,2]
[398103903,1765372240765,-200.0,0.00021768,2]
[398103904,1765372240775,-200.0,0.00021768,2]
[398103905,1765372240784,-200.0,0.00021768,2]
[398103906,1765372240794,-333.0,0.00021768,2]
[398103907,1765372240803,-800.0,0.00021768,2]
[398103908,1765372240812,-800.0,0.00021768,2]
[398103909,1765372240822,-800.0,0.00021768,2]
[398103910,1765372240831,-800.0,0.00021768,2]
[398103911,1765372240840,-800.0,0.00021768,2]
[398103912,1765372240850,-800.0,0.00021768,2]
[398103913,1765372240860,-800.0,0.00021768,2]
[398103914,1765372240869,-800.0,0.00021768,2]
[398103915,1765372240879,-800.0,0.00021768,2]
[398103916,1765372240888,-800.0,0.00021768,2]
[398103917,1765372240898,-800.0,0.00021768,2]
[398103918,1765372240908,-800.0,0.00021768,2]
[398103919,1765372240918,-800.0,0.00021768,2]
[398103920,1765372240927,-800.0,0.00021768,2]
[398103921,1765372240937,-800.0,0.00021768,2]
[398103922,1765372240948,-800.0,0.00021768,2]
[398103923,1765372240961,-800.0,0.00021768,2]
[398103924,1765372240971,-800.0,0.00021768,2]
[398103925,1765372240981,-800.0,0.00021768,2]
[398103926,1765372240991,-800.0,0.00021768,2]
[398103927,1765372241002,-800.0,0.00021768,2]
[398103928,1765372241012,-800.0,0.00021768,2]
[398103929,1765372241022,-800.0,0.00021768,2]
[398103930,1765372241033,-800.0,0.00021768,2]
[398103931,1765372241043,-800.0,0.00021768,2]
[398103932,1765372241052,-200.0,0.00021768,2]
[398103933,1765372241062,-200.0,0.00021768,2]
[398103934,1765372241072,-200.0,0.00021768,2]
[398103935,1765372241083,-200.0,0.00021768,2]
[398103936,1765372241093,-200.0,0.00021768,2]
[398103937,1765372241102,-200.0,0.00021768,2]
[398103938,1765372241112,-200.0,0.00021768,2]
[398103939,1765372241121,-200.0,0.00021768,2]
[398103940,1765372241130,-200.0,0.00021768,2]
[398103941,1765372241139,-200.0,0.00021768,2]
[398103942,1765372241149,-200.0,0.00021768,2]
[398103943,1765372241158,-200.0,0.00021768,2]
[398103944,1765372241171,-200.0,0.00021768,2]
[398103945,1765372241181,-200.0,0.00021768,2]
[398103946,1765372241190,-200.0,0.00021768,2]
[398103947,1765372241200,-200.0,0.00021768,2]
[398103948,1765372241209,-200.0,0.00021768,2]
[398103949,1765372241218,-200.0,0.00021768,2]
[398103950,1765372241227,-200.0,0.00021768,2]
[398103951,1765372241237,-200.0,0.00021768,2]
[398103952,1765372241247,-200.0,0.00021768,2]
[398103953,1765372241256,-200.0,0.00021768,2]
[398103954,1765372241266,-200.0,0.00021768,2]
[398103955,1765372241275,-200.0,0.00021768,2]
[398103956,1765372241284,-200.0,0.00021768,2]
[398103957,1765372241293,-200.0,0.00021768,2]
[398103958,1765372241303,-200.0,0.00021768,2]
[398103959,1765372241313,-200.0,0.00021768,2]
[398103960,1765372241322,-200.0,0.00021768,2]
[398103961,1765372241331,-200.0,0.00021768,2]
[398103962,1765372241341,-500.0,0.00021768,2]
[398103963,1765372241350,-500.0,0.00021768,2]
[398103964,1765372241360,-500.0,0.00021768,2]
[398103965,1765372241369,-500.0,0.00021768,2]
[398103966,1765372241379,-500.0,0.00021768,2]
[398103967,1765372241388,-500.0,0.00021768,2]
[398103968,1765372241399,-500.0,0.00021768,2]
[398103969,1765372241409,-353.0,0.00021768,2]
[398103970,1765372241420,-157.220943,0.00021768,2]
[398103971,1765372241429,-151.0,0.00021768,2]
[398103972,1765372241439,-291.198264,0.00021768,2]
[398103973,1765372241449,-291.198264,0.00021768,2]
[398103974,1765372241458,-197.298459,0.00021768,2]
[398103975,1765372241468,-291.198264,0.00021768,2]
[398103976,1765372241477,-197.298459,0.00021768,2]
[398103977,1765372241486,-291.198264,0.00021768,2]
[398103978,1765372241496,-197.298459,0.00021768,2]
[398103979,1765372241506,-197.298459,0.00021768,2]
[398103980,1765372241515,-151.0,0.00021768,2]
[398103981,1765372241525,-151.0,0.00021768,2]
[398103982,1765372241535,-151.0,0.00021768,2]
[398103983,1765372241545,-500.014261,0.00021918,2]
[398103984,1765372241555,-500.014261,0.00021918,2]
[398103985,1765372241564,-500.014261,0.00021918,2]
[398103986,1765372241573,-500.014261,0.00021918,2]
[398103987,1765372241583,-500.014261,0.00021918,2]
[398103988,1765372241592,-500.014261,0.00021918,2]
[398103989,1765372241602,-500.014261,0.00021918,2]
[398103990,1765372241611,-500.014261,0.00021918,2]
[398103991,1765372241620,-151.0,0.00021918,2]
[398103992,1765372241630,-151.0,0.00021918,2]
[398103993,1765372241640,-500.0,0.00022005,2]
[398103994,1765372241650,-156.12,0.00022012,2]
[398103995,1765372241659,-896.14300808,0.00022105,2]
[398103996,1765372241668,-6429.65412709,0.00022159,2]
[398103997,1765372241677,-500.0,0.00022279,2]
[398103998,1765372241687,-500.0,0.00022553,2]
[398103999,1765372241696,-500.0,0.00022827,2]
[398104000,1765372241705,-248.56849228,0.00022833,2]
[398104001,1765372241715,-500.0,0.00023101,2]
[398104002,1765372241724,-220.8,0.00023288,4]
[398104003,1765372241734,-500.0,0.00023375,2]
[398104004,1765372241743,-151.0,0.00023571,2]
[398104005,1765372241752,-151.0,0.00023571,2]
[398104006,1765372241761,-151.0,0.00023571,2]
[398104007,1765372241771,-151.0,0.00023571,2]
[398104008,1765372241780,-151.0,0.00023571,2]
[398104009,1765372241789,-151.0,0.00023571,2]
[398104010,1765372241798,-151.0,0.00023571,2]
[398104011,1765372241808,-151.0,0.00023571,2]
[398104012,1765372241818,-151.0,0.00023571,2]